bitfinex-derivatives/quotes_BTCF0:USTF0_20251030
["timestamp","ask_amount","ask_price","bid_price","bid_amount"]
[1761810740343,0.8542127,111380.0,111370.0,0.25110743]
[1761810741656,0.9642127,111380.0,111370.0,0.09141473]
[1761810741853,0.8542127,111380.0,111370.0,0.25110743]
[1761810744258,1.1242127,111380.0,111370.0,0.09141473]
[1761810744957,1.2839054,111380.0,111370.0,0.06813473]
[1761810745351,1.2839054,111380.0,111370.0,0.09020473]
[1761810749964,0.96452,111380.0,111370.0,0.09020473]
[1761810750165,1.2839054,111380.0,111370.0,0.09020473]
[1761810750560,0.8542127,111380.0,111370.0,0.25787154]
[1761810751865,0.9642127,111380.0,111370.0,0.25787154]
[1761810752063,1.1442127,111380.0,111370.0,0.09817884]
[1761810752370,0.98452,111380.0,111370.0,0.09817884]
[1761810752556,1.3039054,111380.0,111370.0,0.09817884]
[1761810754162,1.1442127,111380.0,111370.0,0.09817884]
[1761810755557,1.1442127,111380.0,111370.0,0.28190975]
[1761810755867,1.1442127,111380.0,111370.0,0.25787154]
[1761810756270,1.1442127,111380.0,111370.0,0.09817884]
[1761810756872,1.5050127,111380.0,111370.0,0.09817884]
[1761810760268,1.5050127,111380.0,111370.0,0.25787154]
[1761810760476,0.7834127,111380.0,111370.0,0.25787154]
[1761810760675,1.5050127,111380.0,111370.0,0.25787154]
[1761810761278,1.5050127,111380.0,111370.0,0.09817884]
[1761810763381,1.3250127,111380.0,111370.0,0.09817884]
[1761810763687,1.3250127,111380.0,111370.0,0.25787154]
[1761810764687,1.4750127,111380.0,111370.0,0.25787154]
[1761810765585,1.49925922,111380.0,111370.0,0.25787154]
[1761810765785,1.49925922,111380.0,111370.0,0.09817884]
[1761810765989,1.65895192,111380.0,111370.0,0.04112884]
[1761810766190,1.65895192,111380.0,111370.0,0.06271884]
[1761810766392,1.65895192,111380.0,111370.0,0.09748884]
[1761810767294,1.65895192,111380.0,111370.0,0.12155042]
[1761810769587,1.65895192,111380.0,111370.0,0.09748884]
[1761810771495,1.07956652,111380.0,111370.0,0.09748884]
[1761810771797,1.17536,111380.0,111370.0,0.25718154]
[1761810771985,1.3350527,111380.0,111370.0,0.25718154]
[1761810772184,1.35929922,111380.0,111370.0,0.25718154]
[1761810773180,1.62929922,111380.0,111370.0,0.25718154]
[1761810773381,1.62929922,111380.0,111370.0,0.09748884]
[1761810773581,1.62929922,111380.0,111370.0,0.25718154]
[1761810774492,1.8050527,111380.0,111370.0,0.25718154]
[1761810774790,1.82929922,111380.0,111370.0,0.25718154]
[1761810778196,1.98899192,111380.0,111370.0,0.09748884]
[1761810780199,1.98899192,111380.0,111370.0,0.0651964]
[1761810780496,1.98899192,111380.0,111370.0,0.06271884]
[1761810780892,1.98899192,111380.0,111370.0,1.56271884]
[1761810781393,1.82935739,111380.0,111370.0,1.56271884]
[1761810781886,1.82935739,111380.0,111370.0,1.53195864]
[1761810782091,2.06935739,111380.0,111370.0,1.52406569]
[1761810782394,2.07203739,111380.0,111370.0,1.52406569]
[1761810782800,2.06935739,111380.0,111370.0,1.52406569]
[1761810783502,2.07203739,111380.0,111370.0,1.52406569]
[1761810783802,2.06935739,111380.0,111370.0,1.52406569]
[1761810784301,2.07035739,111380.0,111370.0,1.52406569]
[1761810784501,2.07135739,111380.0,111370.0,1.52406569]
[1761810785103,2.06935739,111380.0,111370.0,1.52406569]
[1761810785304,2.07335739,111380.0,111370.0,1.52406569]
[1761810788910,2.07603739,111380.0,111370.0,0.02406569]
[1761810789097,0.00244,111370.0,111360.0,0.02406569]
[1761810789298,1.35542174,111370.0,111360.0,0.02406569]
[1761810789496,1.36542174,111370.0,111360.0,0.02406569]
[1761810789697,1.38567087,111370.0,111360.0,0.02406569]
[1761810790205,1.54642174,111370.0,111360.0,0.02406569]
[1761810790406,1.48661156,111370.0,111360.0,0.02406569]
[1761810792106,1.48593156,111370.0,111360.0,0.02406569]
[1761810795404,1.48593156,111370.0,111350.0,0.04117276]
[1761810795610,0.83231087,111360.0,111350.0,0.09909276]
[1761810795808,1.34231087,111360.0,111350.0,0.09909276]
[1761810796905,1.07231087,111360.0,111350.0,0.09909276]
[1761810797104,1.19231087,111360.0,111350.0,0.09909276]
[1761810798809,1.19431087,111360.0,111350.0,0.09909276]
[1761810799510,1.19531087,111360.0,111350.0,0.09909276]
[1761810800808,0.83451087,111360.0,111350.0,0.09909276]
[1761810801007,1.55611087,111360.0,111350.0,0.09909276]
[1761810803107,1.43611087,111360.0,111350.0,0.09909276]
[1761810803511,1.55611087,111360.0,111350.0,0.09909276]
[1761810805611,1.43611087,111360.0,111350.0,0.09909276]
[1761810807007,1.4603363,111360.0,111350.0,0.09119663]
[1761810807202,1.43611087,111360.0,111350.0,0.09119663]
[1761810807511,1.4603363,111360.0,111350.0,0.09119663]
[1761810808205,1.43611087,111360.0,111350.0,0.09119663]
[1761810808404,1.4603363,111360.0,111350.0,0.09119663]
[1761810809112,1.43611087,111360.0,111350.0,0.09119663]
[1761810809414,1.4603363,111360.0,111350.0,0.09119663]
[1761810810215,1.43611087,111360.0,111350.0,0.09119663]
[1761810823811,0.96704,111360.0,111350.0,0.09119663]
[1761810824017,0.96704,111360.0,111350.0,0.2509475]
[1761810824417,1.08636,111360.0,111350.0,0.2509475]
[1761810825926,1.08636,111360.0,111350.0,0.09909276]
[1761810832930,0.7246,111360.0,111350.0,0.34865943]
[1761810833142,0.003,111360.0,111350.0,0.35133943]
[1761810833341,0.36202,111370.0,111360.0,0.1480775]
[1761810833547,0.36202,111370.0,111360.0,0.34256898]
[1761810834048,0.36324,111370.0,111360.0,0.34256898]
[1761810834434,0.36824,111370.0,111360.0,0.34256898]
[1761810834842,0.36824,111370.0,111360.0,0.33988898]
[1761810836540,0.36824,111370.0,111360.0,0.18013811]
[1761810836746,0.36824,111370.0,111360.0,0.33988898]
[1761810837044,0.36702,111370.0,111360.0,0.33988898]
[1761810837446,0.36702,111370.0,111360.0,0.64916898]
[1761810837948,0.3658,111370.0,111360.0,0.65184898]
[1761810838645,0.36702,111370.0,111360.0,0.65184898]
[1761810840049,0.36702,111370.0,111360.0,0.64916898]
[1761810840344,0.005,111370.0,111360.0,0.64916898]
[1761810841347,0.005,111370.0,111360.0,0.80881933]
[1761810842943,0.005,111370.0,111360.0,0.82473609]
[1761810845456,0.005,111370.0,111360.0,1.42473609]
[1761810846952,0.005,111370.0,111360.0,1.42741609]
[1761810850062,0.00622,111370.0,111360.0,1.10533487]
[1761810850248,0.005,111370.0,111360.0,1.42473609]
[1761810851456,0.00622,111370.0,111360.0,1.42473609]
[1761810851650,0.00744,111370.0,111360.0,1.42473609]
[1761810852349,0.00622,111370.0,111360.0,1.42473609]
[1761810855069,0.005,111370.0,111360.0,1.42473609]
[1761810855852,0.005,111370.0,111360.0,1.42741609]
[1761810856062,0.005,111370.0,111360.0,2.92741609]
[1761810856768,0.005,111370.0,111360.0,3.28821609]
[1761810857264,0.00744,111370.0,111360.0,2.32461609]
[1761810859855,0.00622,111370.0,111360.0,2.32461609]
[1761810860166,0.005,111370.0,111360.0,2.68541609]
[1761810862573,0.005,111370.0,111360.0,2.36601487]
[1761810862771,0.005,111370.0,111360.0,2.68541609]
[1761810864569,0.002,111370.0,111360.0,2.68541609]
[1761810864767,0.002,111370.0,111360.0,2.68741609]
[1761810864970,0.52294061,111380.0,111370.0,0.05639]
[1761810865166,0.53294061,111380.0,111370.0,0.24810642]
[1761810865472,0.37324,111380.0,111370.0,0.24810642]
[1761810865677,0.53294061,111380.0,111370.0,0.13638318]
[1761810865861,0.53294061,111380.0,111370.0,0.24810642]
[1761810866062,0.53294061,111380.0,111370.0,0.29608379]
[1761810866560,0.53294061,111380.0,111370.0,0.33790582]
[1761810866971,0.53294061,111380.0,111370.0,0.33890582]
[1761810867166,0.53294061,111380.0,111370.0,0.35486738]
[1761810867578,0.53294061,111380.0,111370.0,0.19516677]
[1761810867770,0.53294061,111380.0,111370.0,0.35486738]
[1761810869677,0.53294061,111380.0,111370.0,0.26506798]
[1761810874774,0.69264122,111380.0,111370.0,0.10536737]
[1761810874970,0.69264122,111380.0,111370.0,0.08946581]
[1761810876469,0.37324,111380.0,111370.0,0.08946581]
[1761810876670,0.53294061,111380.0,111370.0,0.08946581]
[1761810878182,0.53294061,111380.0,111370.0,0.29714379]
[1761810879078,0.84210061,111380.0,111370.0,0.24916642]
[1761810880884,0.84210061,111380.0,111370.0,0.08946581]
[1761810881085,0.84210061,111380.0,111370.0,0.24916642]
[1761810883485,0.84210061,111380.0,111370.0,0.08946581]
[1761810883681,0.84210061,111380.0,111370.0,0.24916642]
[1761810884780,0.84206061,111380.0,111370.0,0.24916642]
[1761810884982,0.84206061,111380.0,111370.0,0.29714379]
[1761810885983,0.68236,111380.0,111370.0,0.29714379]
[1761810887092,0.37324,111380.0,111370.0,0.35486738]
[1761810894899,0.37324,111380.0,111370.0,0.66398738]
[1761810898404,0.36324,111380.0,111370.0,0.66398738]
[1761810899804,0.36324,111380.0,111370.0,0.50428677]
[1761810900006,0.38324,111380.0,111370.0,0.57418798]
[1761810900411,0.38324,111380.0,111370.0,0.66398738]
[1761810900600,0.38324,111380.0,111370.0,0.35486738]
[1761810900799,0.36324,111380.0,111370.0,0.35486738]
[1761810901400,0.36324,111380.0,111370.0,0.19516677]
[1761810901901,0.36324,111380.0,111370.0,0.35486738]
[1761810902104,0.36324,111380.0,111370.0,0.19516677]
[1761810902303,0.36324,111380.0,111370.0,0.35486738]
[1761810903406,0.36324,111380.0,111370.0,0.35486304]
[1761810905809,0.38746543,111400.0,111390.0,0.02196]
[1761810906105,0.49202,111400.0,111390.0,0.64912]
[1761810906303,0.36202,111400.0,111390.0,0.64912]
[1761810906502,0.00244,111400.0,111390.0,0.64912]
[1761810906707,0.00244,111400.0,111390.0,1.00992]
[1761810907101,0.00244,111400.0,111390.0,0.85022373]
[1761810907303,0.00244,111400.0,111390.0,1.01192]
[1761810908608,0.00244,111400.0,111390.0,0.40164043]
[1761810908813,0.01244,111400.0,111390.0,0.55329669]
[1761810909109,0.37324,111400.0,111390.0,0.55329669]
[1761810909405,0.37324,111400.0,111390.0,0.39360042]
[1761810910312,0.37324,111400.0,111390.0,0.08452042]
[1761810911214,0.37324,111400.0,111390.0,0.08252042]
[1761810911916,0.68232,111400.0,111390.0,0.08252042]
[1761810914214,0.68232,111400.0,111390.0,0.24221669]
[1761810915006,0.68232,111400.0,111390.0,0.2502567]
[1761810915509,0.32152,111400.0,111390.0,0.2502567]
[1761810915716,0.68232,111400.0,111390.0,0.2502567]
[1761810916213,0.68232,111400.0,111390.0,0.09056043]
[1761810917821,0.68232,111400.0,111390.0,1.59056043]
[1761810921925,0.68232,111400.0,111390.0,1.7502567]
[1761810922726,0.68232,111400.0,111390.0,1.59056043]
[1761810922919,0.68232,111400.0,111390.0,1.7502567]
[1761810923523,0.37324,111400.0,111390.0,1.7512567]
[1761810928824,0.01244,111400.0,111390.0,1.7512567]
[1761810929032,0.37324,111400.0,111390.0,1.59156043]
[1761810929219,0.37324,111400.0,111390.0,1.7512567]
[1761810930425,0.37324,111400.0,111390.0,1.7502567]
[1761810930629,0.37424,111400.0,111390.0,1.7502567]
[1761810935826,0.37424,111400.0,111390.0,1.59056043]
[1761810936320,0.53393627,111400.0,111390.0,1.59056043]
[1761810938514,0.37424,111400.0,111390.0,1.59056043]
[1761810940734,0.73504,111400.0,111390.0,1.59056043]
[1761810942028,0.89473627,111400.0,111390.0,1.59056043]
[1761810943830,0.17313627,111400.0,111390.0,1.59056043]
[1761810944130,0.89473627,111400.0,111390.0,1.59056043]
[1761810944329,0.73504,111400.0,111390.0,1.59056043]
[1761810949624,0.01344,111400.0,111390.0,1.59056043]
[1761810949833,0.73504,111400.0,111390.0,1.59056043]
[1761810951942,1.13473627,111400.0,111390.0,1.59056043]
[1761810952241,1.13473627,111400.0,111390.0,1.61460684]
[1761810953118,1.13573627,111400.0,111390.0,1.61460684]
[1761810954130,1.13673627,111400.0,111390.0,1.61460684]
[1761810954638,1.13673627,111400.0,111390.0,1.59056043]
[1761810960238,1.13673627,111400.0,111390.0,1.61461022]
[1761810960547,1.13673627,111400.0,111390.0,1.59056043]
[1761810961936,1.13673627,111400.0,111390.0,0.09056043]
[1761810962124,1.72673627,111400.0,111390.0,0.05611793]
[1761810962330,2.35363839,111400.0,111390.0,0.0240575]
[1761810962529,2.59465839,111400.0,111390.0,1.5601875]
[1761810962732,2.56465839,111400.0,111390.0,1.5601875]
[1761810965436,2.7243863,111400.0,111390.0,1.5601875]
[1761810970042,2.7243863,111400.0,111390.0,1.56017742]
[1761810970043,2.72438594,111400.0,111390.0,1.56017742]
[1761810972038,2.72438594,111400.0,111390.0,1.53613]
[1761810972547,2.72438594,111400.0,111390.0,1.56017742]
[1761810973731,2.12438594,111400.0,111390.0,1.56017742]
[1761810973937,1.70949209,111400.0,111390.0,1.71988951]
[1761810974234,1.54978,111400.0,111390.0,1.71988951]
[1761810974447,1.70949209,111400.0,111390.0,1.71988951]
[1761810975053,1.65949209,111400.0,111390.0,1.71988951]
[1761810975233,1.65949209,111400.0,111390.0,1.75194994]
[1761810976847,1.65949209,111400.0,111390.0,1.72790252]
[1761810977351,1.81920418,111400.0,111390.0,1.56819043]
[1761810978349,1.65949209,111400.0,111390.0,1.56819043]
[1761810979548,1.65949209,111400.0,111390.0,1.72790252]
[1761810979846,1.65949209,111400.0,111390.0,1.56819043]
[1761810980044,1.65949209,111400.0,111390.0,1.72790252]
[1761810980551,1.1883,111400.0,111390.0,1.72790252]
[1761810980751,1.49734,111400.0,111390.0,1.72790252]
[1761810981047,1.03364,111400.0,111390.0,1.81768582]
[1761810981836,1.03064,111400.0,111390.0,1.81768582]
[1761810982549,1.03064,111400.0,111390.0,1.81868582]
[1761810983845,0.7216,111400.0,111390.0,1.81868582]
[1761810984752,0.83195209,111410.0,111400.0,0.05761]
[1761810984939,1.31275209,111410.0,111400.0,0.24137904]
[1761810990850,1.31275209,111410.0,111400.0,0.08166695]
[1761810991956,1.31275209,111410.0,111400.0,0.09042942]
[1761810992150,1.31575209,111410.0,111400.0,0.09042942]
[1761810993655,1.31575209,111410.0,111400.0,0.09044196]
[1761810995159,1.15604,111410.0,111400.0,0.09044196]
[1761810995357,1.31575209,111410.0,111400.0,0.09044196]
[1761810998267,1.31575209,111410.0,111400.0,0.25015405]
[1761810998657,1.31575209,111410.0,111400.0,0.09044196]
[1761810999263,1.33995975,111410.0,111400.0,0.09044196]
[1761811009460,1.33995975,111410.0,111400.0,0.0984329]
[1761811016977,1.33995975,111410.0,111400.0,0.12261885]
[1761811017279,1.33995975,111410.0,111400.0,0.0984329]
[1761811020283,1.33995975,111410.0,111400.0,0.12262044]
[1761811020484,1.33995975,111410.0,111400.0,0.0984329]
[1761811022485,1.50967184,111410.0,111400.0,0.0984329]
[1761811022686,1.50967184,111410.0,111400.0,0.09056826]
[1761811022687,1.86193825,111410.0,111400.0,0.09056826]
[1761811022892,1.86193825,111410.0,111400.0,0.08180579]
[1761811023185,2.13773059,111410.0,111400.0,1.52419579]
[1761811024383,2.1619738,111410.0,111400.0,1.52419579]
[1761811026684,2.1619738,111410.0,111400.0,0.02419579]
[1761811026889,0.00244,111400.0,111390.0,0.05625622]
[1761811027092,1.54690574,111400.0,111390.0,0.05625622]
[1761811027278,1.38720659,111400.0,111390.0,1.52419579]
[1761811029302,1.30720659,111400.0,111390.0,1.52419579]
[1761811029592,1.30920659,111400.0,111390.0,1.53297903]
[1761811030293,1.31220659,111400.0,111390.0,1.54650903]
[1761811030882,1.31220659,111400.0,111390.0,1.55437367]
[1761811030883,0.53824,111400.0,111390.0,1.55437367]
[1761811031193,0.8172,111400.0,111390.0,1.55437367]
[1761811031388,0.50824,111400.0,111390.0,1.7140987]
[1761811031585,0.81476,111400.0,111390.0,1.8038821]
[1761811031786,0.81476,111400.0,111390.0,1.7140987]
[1761811031987,0.67476,111400.0,111390.0,1.7140987]
[1761811032996,0.67476,111400.0,111390.0,1.8038821]
[1761811033180,0.67476,111400.0,111390.0,1.85185947]
[1761811033580,0.3658,111400.0,111390.0,1.81979904]
[1761811033882,0.3658,111400.0,111390.0,2.12875904]
[1761811034794,0.3658,111400.0,111390.0,2.03897564]
[1761811035095,0.3658,111400.0,111390.0,1.99099827]
[1761811037196,0.3658,111400.0,111390.0,2.08078167]
[1761811038094,0.41702,111400.0,111390.0,1.99099827]
[1761811038293,0.41824,111400.0,111390.0,1.83127324]
[1761811038490,0.41702,111400.0,111390.0,1.83127324]
[1761811038795,0.41702,111400.0,111390.0,2.43127324]
[1761811039198,0.4158,111400.0,111390.0,2.43127324]
[1761811039495,0.41702,111400.0,111390.0,2.46350831]
[1761811039997,0.41702,111400.0,111390.0,2.15454831]
[1761811042802,0.41824,111400.0,111390.0,2.15454831]
[1761811043004,0.41524,111400.0,111390.0,2.15554831]
[1761811043498,0.41402,111400.0,111390.0,2.15554831]
[1761811043998,0.41202,111400.0,111390.0,2.15454831]
[1761811048510,0.41324,111400.0,111390.0,1.55454831]
[1761811048690,0.57296503,111400.0,111390.0,1.55454831]
[1761811050201,0.41324,111400.0,111390.0,1.55454831]
[1761811053103,0.93376503,111400.0,111390.0,1.55454831]
[1761811055409,0.93476503,111400.0,111390.0,1.55454831]
[1761811055597,0.93676503,111400.0,111390.0,1.55454831]
[1761811063411,0.21516503,111400.0,111390.0,1.55454831]
[1761811063710,0.93676503,111400.0,111390.0,1.55454831]
[1761811069325,0.96100659,111400.0,111390.0,1.55454831]
[1761811069515,0.80128156,111400.0,111390.0,1.55454831]
[1761811069715,0.96100659,111400.0,111390.0,1.55454831]
[1761811070416,0.93676503,111400.0,111390.0,1.55454831]
[1761811070611,0.96100659,111400.0,111390.0,1.55454831]
[1761811071218,0.93676503,111400.0,111390.0,1.55454831]
[1761811072118,0.21516503,111400.0,111390.0,1.55454831]
[1761811072418,0.93676503,111400.0,111390.0,1.55454831]
[1761811074224,0.77704,111400.0,111390.0,1.55454831]
[1761811074422,0.7746,111400.0,111390.0,1.71427334]
[1761811074618,1.08352,111400.0,111390.0,1.71427334]
[1761811074824,1.08352,111400.0,111390.0,1.55454831]
[1761811075524,1.08352,111400.0,111390.0,0.09771831]
[1761811075726,0.52208503,111400.0,111390.0,0.09771831]
[1761811075916,1.26792659,111400.0,111390.0,0.09771831]
[1761811077429,1.26692659,111400.0,111390.0,0.09771831]
[1761811077923,1.26892659,111400.0,111390.0,0.09771831]
[1761811078325,1.26992659,111400.0,111390.0,0.09771831]
[1761811080125,1.11020156,111400.0,111390.0,0.09771831]
[1761811080325,1.26992659,111400.0,111390.0,0.09771831]
[1761811080517,1.11020156,111400.0,111390.0,0.09771831]
[1761811080718,1.26992659,111400.0,111390.0,0.09771831]
[1761811082329,1.08596,111400.0,111390.0,0.09771831]
[1761811082628,1.08352,111400.0,111390.0,0.09771831]
[1761811083922,1.08152,111400.0,111390.0,0.09771831]
[1761811084625,1.08052,111400.0,111390.0,0.09771831]
[1761811088022,0.4108,111400.0,111390.0,0.25744334]
[1761811088233,0.66968,111400.0,111390.0,0.27318564]
[1761811088730,0.6709,111400.0,111390.0,0.27318564]
[1761811088922,0.36202,111400.0,111390.0,0.27318564]
[1761811089116,0.3608,111400.0,111390.0,0.27318564]
[1761811089430,0.3608,111400.0,111390.0,0.27309116]
[1761811090130,0.3608,111400.0,111390.0,0.3053553]
[1761811090433,0.3608,111400.0,111390.0,0.27309116]
[1761811091330,0.3608,111400.0,111390.0,0.30535387]
[1761811091720,0.36202,111400.0,111390.0,0.30535387]
[1761811091921,0.36202,111400.0,111390.0,0.27309116]
[1761811092122,0.36202,111400.0,111390.0,0.30535507]
[1761811092724,0.36202,111400.0,111390.0,0.36287416]
[1761811092922,0.85355211,111410.0,111400.0,0.02226]
[1761811093230,0.89599211,111410.0,111400.0,0.2506959]
[1761811094632,0.89599211,111410.0,111400.0,0.27489431]
[1761811094830,0.89799211,111410.0,111400.0,0.27489431]
[1761811095034,0.89899211,111410.0,111400.0,0.27489431]
[1761811095236,0.89899211,111410.0,111400.0,0.24262896]
[1761811096735,0.89899211,111410.0,111400.0,0.27489431]
[1761811097137,0.89899211,111410.0,111400.0,0.24262896]
[1761811099727,0.89899211,111410.0,111400.0,0.27489431]
[1761811100242,0.89899211,111410.0,111400.0,0.24262896]
[1761811100436,0.89899211,111410.0,111400.0,0.27489431]
[1761811100837,0.89899211,111410.0,111400.0,0.2506959]
[1761811101038,0.89899211,111410.0,111400.0,0.27489228]
[1761811102941,0.89899211,111410.0,111400.0,0.2506959]
[1761811103351,0.59011211,111410.0,111400.0,0.2506959]
[1761811103534,0.89899211,111410.0,111400.0,0.2506959]
[1761811104249,0.89899211,111410.0,111400.0,0.11526218]
[1761811105452,0.87475055,111410.0,111400.0,0.09106535]
[1761811108254,0.89899211,111410.0,111400.0,0.09106535]
[1761811109142,0.87475055,111410.0,111400.0,0.09106535]
[1761811109347,0.89899211,111410.0,111400.0,0.06807535]
[1761811109550,1.09899211,111410.0,111400.0,0.06807535]
[1761811109753,1.09899211,111410.0,111400.0,0.11351492]
[1761811110049,1.09899211,111410.0,111400.0,0.09227492]
[1761811110256,1.09899211,111410.0,111400.0,0.06807535]
[1761811110556,1.09899211,111410.0,111400.0,0.08931535]
[1761811111751,1.09699211,111410.0,111400.0,0.08931535]
[1761811112455,1.09799211,111410.0,111400.0,0.08931535]
[1761811113561,1.09899211,111410.0,111400.0,0.08931535]
[1761811113758,0.73819211,111410.0,111400.0,0.08931535]
[1761811113956,1.45979211,111410.0,111400.0,0.08931535]
[1761811119858,1.45979211,111410.0,111400.0,0.03226535]
[1761811120564,1.45979211,111410.0,111400.0,0.09059535]
[1761811120864,1.45979211,111410.0,111400.0,0.05460535]
[1761811121060,1.61942266,111410.0,111400.0,0.05647097]
[1761811121267,0.00244,111400.0,111390.0,0.03226535]
[1761811121559,1.36674605,111400.0,111390.0,0.09059535]
[1761811121758,0.82208,111400.0,111390.0,0.2502259]
[1761811121948,0.98171055,111400.0,111390.0,0.2502259]
[1761811122462,0.82208,111400.0,111390.0,0.29820327]
[1761811122663,0.98171055,111400.0,111390.0,0.30697704]
[1761811122858,0.82208,111400.0,111390.0,0.30697704]
[1761811123161,0.98171055,111400.0,111390.0,0.25899967]
[1761811123870,0.51202,111400.0,111390.0,0.30697704]
[1761811124062,0.04602037,111400.0,111390.0,0.52680524]
[1761811124367,0.3608,111410.0,111400.0,0.148105]
[1761811124662,0.3608,111410.0,111400.0,0.49963688]
[1761811124663,0.36324,111410.0,111400.0,0.49963688]
[1761811124862,0.36324,111410.0,111400.0,0.54761425]
[1761811125159,0.36324,111410.0,111400.0,0.85645425]
[1761811125361,0.36324,111410.0,111400.0,0.53719315]
[1761811125559,0.36324,111410.0,111400.0,0.85645425]
[1761811127763,0.00244,111410.0,111400.0,0.85645425]
[1761811128963,0.38626495,111420.0,111410.0,0.1353671]
[1761811129267,0.38748495,111430.0,111420.0,0.1480891]
[1761811129563,0.55748495,111430.0,111420.0,0.61655965]
[1761811130165,0.55748495,111430.0,111420.0,0.7761902]
[1761811130466,0.56048495,111430.0,111420.0,0.7761902]
[1761811130859,0.56048495,111430.0,111420.0,0.61655965]
[1761811131060,0.53624,111430.0,111420.0,0.66453702]
[1761811131262,0.53624,111430.0,111420.0,0.64875703]
[1761811131868,0.53824,111430.0,111420.0,0.80838758]
[1761811135073,0.5358,111430.0,111420.0,0.80838758]
[1761811135670,0.53702,111430.0,111420.0,0.80838758]
[1761811136882,0.53824,111430.0,111420.0,0.80838758]
[1761811140177,0.53702,111430.0,111420.0,0.80838758]
[1761811140787,0.36702,111430.0,111420.0,0.80838758]
[1761811140973,0.3658,111430.0,111420.0,0.80838758]
[1761811141168,0.00744,111430.0,111420.0,0.80838758]
[1761811141379,0.00622,111430.0,111420.0,0.80838758]
[1761811141583,0.005,111430.0,111420.0,0.81106758]
[1761811141772,0.005,111430.0,111420.0,0.80838758]
[1761811142173,0.005,111430.0,111420.0,0.81106758]
[1761811142480,0.005,111430.0,111420.0,1.77186758]
[1761811143280,0.005,111430.0,111420.0,1.76918758]
[1761811144282,0.005,111430.0,111420.0,1.46034758]
[1761811144585,0.005,111430.0,111420.0,1.76910758]
[1761811144788,0.005,111430.0,111420.0,1.46034758]
[1761811145085,0.005,111430.0,111420.0,1.76910758]
[1761811145486,0.005,111430.0,111420.0,1.46034758]
[1761811145786,0.005,111430.0,111420.0,1.76910758]
[1761811146287,0.005,111430.0,111420.0,1.46034758]
[1761811146489,0.005,111430.0,111420.0,1.76906758]
[1761811148178,0.00622,111430.0,111420.0,1.76906758]
[1761811148884,0.005,111430.0,111420.0,1.76906758]
[1761811149390,0.005,111430.0,111420.0,1.60934296]
[1761811149688,0.42824,111430.0,111420.0,0.39924738]
[1761811149889,0.42824,111430.0,111420.0,0.52658648]
[1761811150487,0.42824,111430.0,111420.0,0.55878386]
[1761811151783,0.36824,111430.0,111420.0,0.55878386]
[1761811151990,0.36824,111430.0,111420.0,0.25006386]
[1761811152290,0.36824,111430.0,111420.0,0.55882386]
[1761811155994,0.3658,111430.0,111420.0,0.69656033]
[1761811156193,0.3658,111430.0,111420.0,0.66436295]
[1761811157594,0.36824,111430.0,111420.0,0.66436295]
[1761811157802,0.36824,111430.0,111420.0,0.57460385]
[1761811158595,0.3658,111430.0,111420.0,0.66436295]
[1761811158794,0.36702,111430.0,111420.0,0.57460385]
[1761811161303,0.3658,111430.0,111420.0,0.57460385]
[1761811163103,0.36702,111430.0,111420.0,0.57460385]
[1761811163504,0.3658,111430.0,111420.0,0.57460385]
[1761811163706,0.005,111430.0,111420.0,0.66436285]
[1761811166612,0.00744,111430.0,111420.0,0.41506737]
[1761811166919,0.39824,111430.0,111420.0,0.57456385]
[1761811168202,0.39824,111430.0,111420.0,0.26584385]
[1761811168410,0.39824,111430.0,111420.0,0.41502737]
[1761811168809,0.39824,111430.0,111420.0,0.10630737]
[1761811169023,0.39824,111430.0,111420.0,0.1152975]
[1761811169024,0.86649648,111430.0,111420.0,0.1152975]
[1761811169302,1.15917648,111430.0,111420.0,0.03225013]
[1761811170109,1.33649648,111430.0,111420.0,0.03225013]
[1761811170310,1.33917648,111430.0,111420.0,0.03225013]
[1761811170511,1.33649648,111430.0,111420.0,0.03225013]
[1761811171692,1.33649648,111430.0,111420.0,0.05409013]
[1761811171896,1.05649648,111430.0,111420.0,0.08973013]
[1761811172311,1.18824,111430.0,111420.0,0.08973013]
[1761811172494,1.497,111430.0,111420.0,0.08973013]
[1761811173006,0.897,111430.0,111420.0,0.08973013]
[1761811177613,1.2578,111430.0,111420.0,0.08973013]
[1761811178111,1.8558,111430.0,111420.0,0.08973013]
[1761811178503,2.01533648,111430.0,111420.0,0.08973013]
[1761811181106,0.94704,111430.0,111420.0,0.08973013]
[1761811181306,1.2558,111430.0,111420.0,0.08973013]
[1761811181509,1.2558,111430.0,111420.0,1.58973013]
[1761811182321,1.0658,111430.0,111420.0,1.74926661]
[1761811183022,0.75704,111430.0,111420.0,1.76499385]
[1761811183322,0.75704,111430.0,111420.0,1.85475265]
[1761811183524,0.39624,111430.0,111420.0,1.88695609]
[1761811183712,0.39624,111430.0,111420.0,1.85475265]
[1761811184321,0.39624,111430.0,111420.0,1.76499385]
[1761811186724,0.39624,111430.0,111420.0,1.60545737]
[1761811190623,0.39624,111430.0,111420.0,1.63766169]
[1761811191222,0.39624,111430.0,111420.0,1.60545737]
[1761811192513,0.39624,111430.0,111420.0,1.637665]
[1761811193130,0.39624,111430.0,111420.0,1.60545737]
[1761811194224,0.55577648,111430.0,111420.0,1.60545737]
[1761811194431,0.91657648,111430.0,111420.0,1.58969311]
[1761811197830,0.75704,111430.0,111420.0,1.58969311]
[1761811200329,0.75704,111430.0,111420.0,2.3167989]
[1761811200330,0.003,111430.0,111420.0,2.3167989]
[1761811200525,0.003,111430.0,111420.0,2.3194789]
[1761811200723,0.38623837,111450.0,111440.0,0.05826]
[1761811201023,0.42324,111450.0,111440.0,0.11461578]
[1761811201824,0.4238,111450.0,111440.0,0.11461578]
[1761811202128,0.4238,111450.0,111440.0,0.42384262]
[1761811202925,0.4238,111450.0,111440.0,0.11460262]
[1761811203636,0.42624,111450.0,111440.0,0.08239932]
[1761811203831,0.42892,111450.0,111440.0,0.08239932]
[1761811204035,0.42892,111450.0,111430.0,0.08239932]
[1761811204036,0.00244,111440.0,111430.0,0.08239932]
[1761811204339,0.41324,111440.0,111430.0,0.08239932]
[1761811205235,0.41324,111440.0,111430.0,0.08339932]
[1761811206133,0.43745837,111440.0,111430.0,0.08339932]
[1761811206447,0.41424,111440.0,111430.0,0.08339932]
[1761811206937,0.41424,111440.0,111430.0,0.11560262]
[1761811207537,0.41524,111440.0,111430.0,0.11460262]
[1761811208342,0.43945837,111440.0,111430.0,0.08239932]
[1761811208633,0.54945837,111440.0,111430.0,0.08239932]
[1761811209034,0.52524,111440.0,111430.0,0.11460262]
[1761811209635,0.52402,111440.0,111430.0,0.11460262]
[1761811209933,0.5228,111440.0,111430.0,0.11460262]
[1761811210334,0.52524,111440.0,111430.0,0.11460262]
[1761811210830,0.52424,111440.0,111430.0,0.11560262]
[1761811211235,0.52324,111440.0,111430.0,0.11560262]